bitfinex/quotes_ETHUSD_20240711
["timestamp","ask_amount","ask_price","bid_price","bid_amount"]
[1720664713326,0.0381403,3114.8,3114.2,0.3522732]
[1720664713526,2.4961,3115.4,3114.2,0.3522732]
[1720664713732,2.4961,3115.4,3114.0,3.24892]
[1720664713733,0.03812601,3114.7,3114.0,3.24892]
[1720664713960,0.55,3115.3,3114.0,0.24892]
[1720664714131,2.4961,3115.4,3113.8,2.002]
[1720664714132,1.7775791,3115.2,3113.8,2.002]
[1720664714450,1.7775791,3115.1,3113.9,1.11803737]
[1720664714745,2.4961,3115.4,3114.0,5.28412507]
[1720664714951,1.77726012,3115.3,3114.2,2.002]
[1720664715252,1.11252262,3115.2,3114.3,1.11790351]
[1720664715425,2.83204768,3115.8,3114.4,0.6184104]
[1720664715614,1.81517242,3115.7,3114.6,2.2901]
[1720664715947,1.77701184,3115.6,3114.6,5.2901]
[1720664716116,2.83204768,3115.8,3114.6,5.2901]
[1720664716117,1.77701184,3115.5,3114.6,2.2901]
[1720664716317,1.11246443,3115.4,3114.6,2.2901]
[1720664716556,2.83204768,3115.8,3114.7,0.59962735]
[1720664716723,1.77694847,3115.7,3114.7,3.53542976]
[1720664716922,1.77694847,3115.6,3114.7,3.53542976]
[1720664717248,1.77694847,3115.5,3114.7,3.53542976]
[1720664717549,1.11237803,3115.4,3114.7,3.53542976]
[1720664717851,1.11237803,3115.7,3114.8,0.58255298]
[1720664718147,1.11238405,3115.6,3114.8,0.6467503]
[1720664718378,2.4389,3116.2,3114.8,0.58255298]
[1720664718528,1.77672007,3116.1,3114.8,0.58255298]
[1720664718868,1.77672007,3116.0,3114.9,0.3582553]
[1720664719066,1.81497948,3115.9,3115.0,0.06419107]
[1720664719254,0.03825941,3115.9,3115.0,0.06419107]
[1720664719459,2.3607,3116.6,3115.1,2.29]
[1720664719644,1.8151543,3116.5,3115.2,0.49980387]
[1720664719845,0.66443354,3116.4,3115.3,0.06418084]
[1720664720254,1.11212885,3116.3,3115.3,0.06418084]
[1720664720448,2.3607,3116.6,3115.3,0.06418084]
[1720664720775,1.77652596,3116.5,3115.3,0.06418084]
[1720664720940,1.1121122,3116.4,3115.4,0.34998]
[1720664721274,0.03840436,3116.3,3115.4,0.34998]
[1720664721490,1.11214048,3116.3,3115.4,0.34998]
[1720664721634,0.03838408,3116.2,3115.4,0.34998]
[1720664721833,2.2855,3117.0,3115.4,0.34998]
[1720664722089,2.59366398,3116.9,3115.4,0.34998]
[1720664722270,1.77662991,3116.8,3115.4,0.34998]
[1720664722477,1.81508542,3116.7,3115.2,3.0]
[1720664722766,1.81508542,3116.7,3115.1,5.29]
[1720664722767,4.06772991,3116.6,3115.1,5.29]
[1720664722939,4.06772991,3116.6,3115.1,2.29]
[1720664722940,2.32662991,3116.5,3115.1,2.29]
[1720664723140,1.77662991,3116.4,3115.1,2.29]
[1720664723406,2.05137283,3116.3,3115.1,2.29]
[1720664723703,1.77622706,3116.2,3115.1,2.29]
[1720664724018,2.36481769,3116.1,3115.0,3.0]
[1720664724300,1.77622706,3116.0,3114.9,0.3582553]
[1720664724465,0.58859063,3116.1,3114.9,0.3582553]
[1720664724466,1.1122769,3115.9,3115.0,0.33582553]
[1720664724665,1.1122769,3116.0,3115.0,0.33582553]
[1720664724861,1.1123243,3115.9,3115.0,0.33582553]
[1720664725060,0.55,3116.1,3115.0,0.33582553]
[1720664725392,1.11232343,3116.0,3115.0,0.33582553]
[1720664725592,2.2911,3116.6,3115.0,0.33582553]
[1720664725798,2.55449506,3116.5,3115.0,0.33582553]
[1720664726006,1.77538506,3116.4,3115.0,0.33582553]
[1720664726194,1.81409974,3116.3,3115.0,0.33582553]
[1720664726398,0.66310566,3116.2,3115.0,0.33582553]
[1720664726701,1.77564053,3116.1,3115.0,0.33582553]
[1720664726892,1.2898808,3116.0,3115.0,0.33582553]
[1720664727096,1.11231675,3115.9,3115.0,0.33582553]
[1720664729617,1.11231675,3116.4,3115.0,0.33582553]
[1720664729809,0.70332459,3116.3,3115.0,0.33582553]
[1720664730005,1.77691743,3116.2,3115.0,0.33582553]
[1720664730282,1.77691743,3116.1,3115.0,0.33582553]
[1720664730482,1.11231139,3116.0,3115.0,0.33582553]
[1720664730678,1.11231139,3116.1,3115.0,0.33582553]
[1720664730876,1.77692067,3116.0,3115.0,0.33582553]
[1720664731080,1.11231139,3115.9,3115.0,0.33582553]
[1720664731303,1.11231139,3116.1,3115.0,0.33582553]
[1720664731522,0.6646555,3116.0,3115.0,0.33582553]
[1720664731744,3.55111139,3115.9,3114.8,3.0]
[1720664731886,1.77696689,3115.8,3114.5,3.0]
[1720664732084,2.24094272,3115.7,3114.4,7.4]
[1720664732399,1.77712119,3115.6,3114.4,7.4]
[1720664732717,1.81562528,3115.5,3114.4,7.4]
[1720664732880,1.11252958,3115.4,3114.4,7.4]
[1720664733297,1.11252958,3115.6,3114.4,7.4]
[1720664733514,1.77711475,3115.5,3114.4,8.37688]
[1720664733747,1.77718389,3115.4,3114.4,8.37688]
[1720664733895,1.11256245,3115.3,3114.5,3.0]
[1720664734096,0.42544315,3115.7,3114.5,3.0]
[1720664734310,1.77716493,3115.6,3114.6,1.137688]
[1720664734511,0.42544315,3115.7,3114.6,1.137688]
[1720664734512,1.77716493,3115.5,3114.6,1.137688]
[1720664734847,1.77716493,3115.4,3114.6,1.137688]
[1720664735016,1.15088203,3115.3,3114.6,1.137688]
[1720664735341,2.4388,3115.9,3114.6,1.137688]
[1720664735551,2.02085362,3115.8,3114.7,0.4137688]
[1720664735839,1.77697362,3115.7,3114.7,0.4137688]
[1720664736050,1.77697362,3115.6,3114.7,0.4137688]
[1720664736202,1.11248038,3115.5,3114.7,0.4137688]
[1720664736401,0.24388,3115.8,3114.8,2.295]
[1720664736725,1.81511119,3115.7,3114.9,0.27087688]
[1720664737052,1.1124143,3115.6,3114.9,0.27087688]
[1720664737260,2.2692,3116.3,3114.9,0.27087688]
[1720664737553,1.81519755,3116.2,3114.9,0.27087688]
[1720664737725,1.77687792,3116.1,3115.0,0.06419141]
[1720664737896,1.77687792,3116.0,3115.0,0.06419141]
[1720664738096,1.81516237,3115.9,3115.0,0.06419141]
[1720664738307,0.03828445,3115.9,3115.1,2.3127]
[1720664738533,0.03828445,3115.9,3115.2,0.75891314]
[1720664738951,7.70448559,3116.9,3115.2,3.75891314]
[1720664739150,1.77656462,3116.8,3115.2,3.75891314]
[1720664739363,1.77656462,3116.7,3115.2,3.0]
[1720664739567,1.77656462,3116.6,3115.1,2.3127]
[1720664739753,2.32656462,3116.5,3115.1,2.3127]
[1720664740073,2.32656462,3116.5,3114.5,0.67285217]
[1720664740074,2.2608,3115.0,3114.5,0.67285217]
[1720664740356,2.2608,3115.0,3113.0,0.06422491]
[1720664740357,1.81557776,3114.9,3113.0,0.06422491]
[1720664740539,1.77744883,3114.8,3113.0,0.06422491]
[1720664740732,1.77744883,3114.7,3113.0,0.06422491]
[1720664740953,1.95519371,3114.6,3113.1,0.43789249]
[1720664741158,1.77744883,3114.5,3113.1,0.43789249]
[1720664741343,1.77744883,3114.4,3113.1,0.43789249]
[1720664741543,1.77744883,3114.3,3113.1,0.43789249]
[1720664741743,1.77746564,3114.2,3113.1,0.43789249]
[1720664741955,1.11295519,3114.1,3113.1,0.43789249]
[1720664742159,0.03798075,3114.1,3113.1,0.43789249]
[1720664742356,0.17774488,3114.6,3113.1,0.43789249]
[1720664742560,1.77732273,3114.5,3113.1,0.43789249]
[1720664742725,1.77732273,3114.4,3113.1,0.43789249]
[1720664742930,1.11293157,3114.3,3113.1,0.43789249]
[1720664743131,0.03798244,3114.3,3113.1,0.43789249]
[1720664743460,0.33601066,3114.7,3113.2,0.35021172]
[1720664743657,1.81519253,3114.6,3113.2,0.35021172]
[1720664743955,1.77716478,3114.5,3113.2,0.35021172]
[1720664744148,1.77716478,3114.4,3113.2,0.35021172]
[1720664744337,0.03799915,3114.4,3113.2,0.35021172]
[1720664744739,0.33601066,3114.7,3113.2,0.35021172]
[1720664744926,0.03776159,3114.3,3113.2,0.35021172]
[1720664745129,0.55,3114.9,3113.2,0.41443643]
[1720664745336,0.03796285,3114.2,3113.2,0.41443643]
[1720664745548,0.55,3114.9,3113.2,0.41443643]
[1720664745765,1.77764436,3114.8,3113.2,0.41443643]
[1720664745969,1.77764436,3114.7,3113.2,0.41443643]
[1720664746151,0.49648904,3114.8,3113.2,0.41443643]
[1720664746325,0.03761599,3114.6,3113.3,2.47172097]
[1720664746660,0.33603258,3115.1,3113.5,2.4075]
[1720664746849,0.03775259,3115.0,3113.6,0.0642119]
[1720664747372,0.33603258,3115.1,3113.6,0.0642119]
[1720664747531,0.03773829,3114.9,3113.9,2.3007]
[1720664747731,0.03773722,3115.0,3114.0,0.61542163]
[1720664747944,0.714,3115.8,3114.0,0.61542163]
[1720664748229,1.81519949,3115.7,3114.0,3.61542163]
[1720664748440,1.77723746,3115.6,3114.0,3.61542163]
[1720664748645,1.9966947,3115.5,3114.1,0.59161216]
[1720664748885,0.21945724,3115.5,3114.1,0.59161216]
[1720664749173,1.77751061,3115.4,3114.1,0.59161216]
[1720664749373,0.03793729,3115.5,3114.1,0.59161216]
[1720664749677,1.77753498,3115.4,3114.1,0.59161216]
[1720664749881,0.55,3115.8,3114.1,0.59161216]
[1720664750051,1.81548847,3115.7,3114.1,0.59161216]
[1720664750391,1.7775226,3115.6,3114.2,0.42978589]
[1720664750597,0.03796587,3115.7,3114.3,2.36489918]
[1720664750902,0.03796251,3115.6,3114.3,5.36489918]
[1720664751109,0.33598998,3115.9,3114.3,5.36489918]
[1720664751269,1.81523963,3115.8,3114.3,5.36489918]
[1720664751476,1.11248163,3115.7,3114.4,0.5730481]
[1720664751679,0.03817566,3115.6,3114.5,0.0641993]
[1720664751878,0.33598998,3115.9,3114.5,0.0641993]
[1720664752079,1.81537237,3115.8,3114.5,0.0641993]
[1720664752372,1.11249477,3115.7,3114.5,0.0641993]
[1720664752591,0.03820424,3115.8,3114.5,0.0641993]
[1720664752914,1.15067472,3115.7,3114.5,0.0641993]
[1720664753090,1.15067472,3115.7,3114.4,0.5730481]
[1720664753419,2.22509343,3115.6,3114.5,0.58737481]
[1720664753597,2.22509343,3115.6,3114.6,0.06419938]
[1720664753598,1.112547,3115.5,3114.6,0.06419938]
[1720664753912,0.03816136,3115.5,3114.6,0.06419938]
[1720664755170,0.03816136,3115.5,3114.7,0.06419934]
[1720664756098,0.03816136,3115.5,3114.8,2.4987]
[1720664756265,1.11254643,3115.6,3114.9,0.25628993]
[1720664756603,0.03819192,3115.5,3114.9,0.25628993]
[1720664757509,1.11254643,3115.6,3115.0,0.0641951]
[1720664757671,1.11254643,3115.6,3115.1,2.4987]
[1720664757873,1.11254643,3115.6,3115.2,0.06418341]
[1720664758202,1.11254643,3115.6,3115.3,0.55628834]
[1720664760216,1.11254643,3115.6,3115.3,0.62047558]
[1720664760503,1.11254643,3115.6,3115.3,0.55628834]
[1720664765639,0.33599191,3115.5,3115.3,0.55628834]
[1720664765819,0.33599191,3115.5,3115.1,2.4987]
[1720664766217,0.33599191,3115.5,3115.2,0.06418881]
[1720664766542,2.2721,3117.5,3115.4,5.21186]
[1720664766757,0.33597867,3116.1,3115.5,3.61416941]
[1720664766903,0.0388664,3117.4,3115.5,6.82391941]
[1720664767103,2.2721,3117.5,3115.6,0.88259194]
[1720664767104,1.34312723,3117.3,3115.6,0.88259194]
[1720664767342,0.33598127,3116.1,3115.6,0.94676133]
[1720664767510,0.03883785,3117.2,3115.6,0.94676133]
[1720664767712,0.33598665,3116.3,3115.7,2.3876]
[1720664768068,2.2721,3117.5,3115.8,5.27555085]
[1720664768348,0.33603623,3116.5,3115.9,7.59659909]
[1720664768551,2.002,3118.1,3115.9,7.59659909]
[1720664768552,2.2982,3118.0,3116.0,2.4622]
[1720664768778,1.11187594,3117.9,3116.0,2.52636261]
[1720664769048,1.11187594,3117.9,3116.1,3.0]
[1720664769049,1.111875,3117.8,3116.1,3.0]
[1720664769251,1.15090714,3117.7,3116.1,3.06416262]
[1720664769549,0.03903214,3117.7,3116.3,2.4331]
[1720664769761,0.03903214,3117.7,3116.5,2.4331]
[1720664770049,0.33605205,3117.8,3116.6,2.06615259]
[1720664770353,0.03903694,3117.7,3116.7,6.02671]
[1720664770553,0.03903694,3117.7,3116.8,0.87343128]
[1720664770765,2.3856,3118.8,3116.9,5.4765]
[1720664770913,1.11153868,3118.7,3117.0,0.06414113]
[1720664771119,0.33600949,3118.3,3117.0,3.06414113]
[1720664771329,0.03911848,3118.2,3117.0,8.27433113]
[1720664771636,0.33601487,3118.3,3117.2,2.489]
[1720664771838,0.33601487,3118.3,3117.2,5.55313604]
[1720664772038,0.33601487,3118.3,3117.3,0.06413604]
[1720664772283,0.33601487,3118.3,3117.3,3.06413604]
[1720664772778,4.505664,3119.3,3117.3,3.06413604]
[1720664772921,1.56199388,3119.2,3117.4,0.5553136]
[1720664773255,0.33603892,3118.8,3117.5,0.06413585]
[1720664773422,0.03915977,3118.7,3117.6,2.4711]
[1720664773624,0.03915977,3118.7,3117.8,2.002]
[1720664773826,0.44948666,3119.3,3117.9,0.06412968]
[1720664774025,0.44948666,3119.3,3118.0,0.20661297]
[1720664774026,0.03970825,3119.2,3118.0,0.20661297]
[1720664775255,0.03970825,3119.2,3117.7,3.0]
[1720664775437,0.58970825,3119.2,3117.6,2.4711]
[1720664775632,0.03970825,3119.2,3117.6,2.4711]
[1720664775833,0.58970825,3119.2,3117.6,2.4711]
[1720664776077,2.2723,3119.1,3117.6,2.4711]
[1720664776245,2.32798521,3119.0,3117.1,2.3369]
[1720664776558,2.87798521,3119.0,3117.1,2.3369]
[1720664777158,6.26698521,3119.0,3117.1,2.3369]
[1720664777381,2.002,3118.6,3117.1,2.3369]
[1720664777539,3.389,3118.8,3117.1,2.3369]
[1720664777540,0.55,3118.5,3117.1,2.3369]
[1720664777869,0.03969348,3118.4,3117.1,2.3369]
[1720664778530,0.03969348,3118.4,3117.1,3.31059]
[1720664779045,0.03969348,3118.4,3117.2,0.06415004]
[1720664779251,2.002,3118.8,3117.1,2.3369]
[1720664779450,0.58964264,3118.7,3117.1,2.3369]
[1720664779746,3.58964264,3118.7,3117.1,2.3369]
[1720664780134,0.58964264,3118.7,3117.1,2.3369]
[1720664780354,0.25916426,3118.6,3117.2,0.29783428]
[1720664780545,0.25916426,3118.6,3117.3,0.06414444]
[1720664780729,0.03959109,3118.5,3117.2,3.23369]
[1720664782032,0.03959109,3118.5,3117.2,3.29783449]
[1720664782541,0.3221,3120.2,3117.9,2.002]
[1720664782542,2.2861,3119.7,3117.9,2.002]
[1720664782738,0.04001719,3119.2,3118.0,2.6283]
[1720664783147,2.2861,3119.7,3118.0,2.6283]
[1720664783630,10.529,3119.6,3117.6,5.4349]
[1720664783851,0.59001719,3119.2,3117.6,2.4349]
[1720664784639,3.59001719,3119.2,3117.6,2.4349]
[1720664785171,2.002,3118.9,3117.0,2.3509]
[1720664785334,1.31179335,3118.8,3117.0,2.3509]
[1720664785534,1.1516656,3118.7,3117.0,2.3509]
[1720664785835,0.55,3118.6,3117.0,2.3509]
[1720664786150,0.03998387,3118.5,3117.0,2.3509]
[1720664787345,0.03998387,3118.5,3117.0,2.2052]
[1720664788359,0.03998387,3118.5,3117.0,2.72572]
[1720664788959,0.03998387,3118.5,3117.0,2.7898684]
[1720664789154,0.33607083,3118.4,3117.0,2.7898684]
[1720664789599,0.03986241,3118.3,3117.0,2.7898684]
[1720664789818,0.03986241,3118.3,3117.0,2.72572]
[1720664790467,2.29816241,3118.3,3116.8,3.0]
[1720664790689,2.29816241,3118.3,3116.8,0.06414835]
[1720664790690,0.03986241,3118.3,3116.8,0.06414835]
[1720664792163,0.03986241,3118.3,3117.1,2.002]
[1720664792364,2.2583,3118.7,3117.2,0.06413844]
[1720664792666,0.03991001,3118.6,3117.1,2.06613846]
[1720664792894,0.28576001,3118.6,3117.2,0.50661385]
[1720664793089,0.28576001,3118.6,3117.2,3.50661385]
[1720664793363,0.03991001,3118.6,3117.3,2.4618]
[1720664793563,0.03991001,3118.6,3117.5,2.002]
[1720664793966,0.33605819,3118.8,3117.3,2.4618]
[1720664794302,0.33605819,3118.8,3116.5,0.6657754]
[1720664794303,2.3261,3118.6,3116.8,9.8036]
[1720664794481,1.1514502,3118.5,3116.9,3.0]
[1720664794682,1.1514502,3118.5,3116.8,2.4036]
[1720664794683,1.45925426,3118.4,3117.0,0.54036]
[1720664794860,1.15155325,3118.3,3117.0,0.54036]
[1720664795066,0.03992242,3118.3,3117.0,0.54036]
[1720664795291,1.11161003,3118.2,3117.0,0.54036]
[1720664795474,0.03988428,3118.1,3117.0,0.54036]
[1720664795681,0.34775502,3118.4,3117.1,0.354036]
[1720664795895,1.11158145,3118.3,3117.1,0.354036]
[1720664796080,0.03995826,3118.3,3117.1,0.354036]
[1720664796281,0.03995826,3118.3,3117.2,0.06414464]
[1720664796521,2.3261,3118.6,3117.3,0.06414058]
[1720664796667,2.3261,3118.6,3117.4,0.32721306]
[1720664796996,0.33605819,3118.8,3117.4,0.32721306]
[1720664797313,0.03997229,3118.7,3117.4,0.3913471]
[1720664797494,0.33605819,3118.8,3117.4,0.32721306]
[1720664797803,0.03997709,3118.7,3117.5,2.3382]
[1720664798112,0.03997709,3118.7,3117.6,0.33708876]
[1720664798282,0.33605819,3118.8,3117.6,0.27295471]
[1720664798790,0.32590111,3118.8,3117.6,0.27295471]
[1720664799111,0.03851482,3118.7,3117.6,0.27295471]
[1720664799410,0.32590111,3118.8,3117.7,0.06413403]
[1720664799607,0.32590111,3118.8,3117.6,0.27295471]
[1720664799910,0.03851482,3118.7,3117.7,0.26111547]
[1720664800078,0.32590111,3118.8,3117.7,0.26111547]
[1720664800277,0.03853563,3118.7,3117.4,0.32721306]
[1720664801914,0.03721124,3118.6,3117.4,0.32721306]
[1720664802115,0.31443674,3118.8,3117.4,0.32721306]
[1720664802348,0.0371991,3118.7,3117.4,0.32721306]
[1720664803808,2.489,3118.6,3117.4,0.32721306]
[1720664804044,2.489,3118.6,3116.8,7.4]
[1720664804045,0.80261991,3118.5,3117.1,0.354036]
[1720664804248,3.389,3118.4,3116.8,7.4]
[1720664804532,2.489,3118.2,3116.2,2.4664]
[1720664804833,3.939,3118.3,3115.8,0.6657754]
[1720664804834,2.2604,3117.9,3115.8,0.6657754]
[1720664805039,1.31514,3117.8,3115.9,0.40385385]
[1720664805236,1.35212176,3117.8,3115.9,0.40385385]
[1720664805606,4.35212176,3117.8,3115.9,0.40385385]
[1720664806007,1.11199139,3117.7,3115.9,0.40385385]
[1720664806234,1.11199139,3117.6,3115.9,2.4700235]
[1720664806435,1.11199139,3117.5,3116.0,0.24700235]
[1720664806739,1.14893578,3117.4,3116.0,3.24700235]
[1720664806919,1.11199139,3117.3,3116.0,3.24700235]
[1720664807113,4.31514,3117.8,3116.0,3.24700235]
[1720664807114,1.14890722,3117.2,3116.0,3.24700235]
[1720664807463,4.31514,3117.8,3116.0,3.24700235]
[1720664807464,3.59609139,3117.1,3116.0,3.24700235]
[1720664807660,1.47160053,3117.0,3116.0,0.24700235]
[1720664807854,1.11199139,3116.9,3116.0,0.24700235]
[1720664808207,0.03660308,3116.8,3116.0,0.24700235]
[1720664808800,0.03658879,3116.7,3116.0,0.24700235]
[1720664809303,2.4841,3117.5,3116.0,0.24700235]
[1720664809496,1.36036678,3117.4,3116.0,0.24700235]
[1720664809646,1.11195678,3117.3,3116.0,3.31117203]
[1720664809848,0.03690353,3117.4,3116.0,3.31117203]
[1720664810066,1.11188362,3117.3,3116.0,3.31117203]
[1720664810262,1.11188362,3117.2,3116.0,3.31117203]
[1720664810487,2.4841,3117.5,3116.1,0.57170259]
[1720664810656,1.11188874,3117.4,3116.2,0.06416359]
[1720664810995,1.11188874,3117.3,3116.2,0.06416359]
[1720664811297,0.03670853,3117.4,3116.2,0.06416359]
[1720664811462,0.03668984,3117.2,3116.2,0.06416359]
[1720664811659,0.03670412,3117.3,3116.2,0.06416359]
[1720664811898,1.11193719,3117.2,3116.2,0.06416359]
[1720664812102,2.4841,3117.5,3116.2,0.06416359]
[1720664812255,1.11189243,3117.4,3116.2,0.06416359]
[1720664812589,1.11189243,3117.3,3116.2,0.06416359]
[1720664813094,0.03669972,3117.2,3116.2,0.06416359]
[1720664813391,2.4841,3117.5,3116.2,0.06416359]
[1720664813594,1.11184674,3117.4,3116.3,2.06616387]
[1720664813813,0.0368498,3117.4,3116.3,2.06616387]
[1720664814276,0.0368498,3117.4,3116.3,2.002]
[1720664814773,0.0368498,3117.4,3116.3,2.0661586]
[1720664815015,0.0368498,3117.4,3116.4,2.3104]
[1720664815318,2.4637,3118.0,3116.5,0.50181402]
[1720664815641,2.4637,3118.0,3116.5,3.50181402]
[1720664815642,1.14865498,3117.9,3116.5,3.50181402]
[1720664815773,1.11173382,3117.8,3116.5,3.50181402]
[1720664816116,2.4637,3118.0,3116.5,3.50181402]
[1720664816349,1.11169348,3117.9,3116.6,0.5812214]
[1720664816638,1.11169348,3117.8,3116.6,0.5812214]
[1720664816837,2.4637,3118.0,3116.6,0.5812214]
[1720664817040,1.11167302,3117.9,3116.6,0.5812214]
[1720664817260,1.11167302,3117.8,3116.6,0.5812214]
[1720664817399,2.2852,3118.4,3116.7,0.40830354]
[1720664817598,0.03695645,3117.7,3116.7,0.40830354]
[1720664817795,5.2852,3118.4,3116.8,0.06415104]
[1720664817999,1.11163629,3118.3,3116.8,0.06415104]
[1720664818224,1.11163629,3118.2,3116.8,0.06415104]
[1720664818545,1.14679029,3118.1,3117.0,2.4663]
[1720664818842,2.2852,3118.4,3117.1,0.06414775]
[1720664819000,1.11157845,3118.3,3117.1,0.06414775]
[1720664819201,1.11157845,3118.2,3117.0,2.4663]
[1720664819648,0.03522218,3118.1,3117.0,2.4663]
[1720664819854,1.11157845,3118.0,3116.9,0.24744546]
[1720664820235,1.11157845,3118.0,3116.5,3.0]
[1720664820236,0.03522486,3117.9,3116.5,3.0]
[1720664820558,1.11157845,3117.8,3116.4,5.38845646]
[1720664820696,1.11157845,3118.3,3116.4,5.38845646]
[1720664820902,0.58526046,3118.2,3116.4,5.38845646]
[1720664821101,1.11170058,3118.1,3116.4,5.38845646]
[1720664821350,1.11170058,3118.0,3116.5,0.90661497]
[1720664821520,1.11170058,3118.0,3116.5,3.90661497]
[1720664821724,1.11170058,3118.0,3116.6,0.0641564]
[1720664822062,0.03520085,3117.9,3116.6,0.0641564]
[1720664822211,1.11170058,3117.8,3116.5,3.97076813]
[1720664822411,0.1696961,3118.1,3116.6,0.62950681]
[1720664822665,1.11170199,3118.0,3116.7,0.06415316]
[1720664822861,1.11170199,3117.9,3116.7,0.06415316]
[1720664823004,2.2852,3118.4,3116.7,0.06415316]
[1720664823210,1.11165118,3118.3,3116.9,2.2546]
[1720664823445,1.11165118,3118.2,3117.0,0.06414544]
[1720664823649,2.2852,3118.4,3117.1,0.23187454]
[1720664823870,1.11153129,3118.3,3117.2,0.06414639]
[1720664824082,1.14675859,3118.3,3117.2,0.06414639]
[1720664824371,0.0352273,3118.3,3117.2,0.06414639]
[1720664824526,2.3919,3118.8,3117.2,0.06414639]
[1720664824725,1.38592452,3118.7,3117.2,0.39374848]
[1720664824927,1.11147258,3118.6,3117.4,2.4399]
[1720664825128,0.03523341,3118.5,3117.5,0.06413666]
[1720664825372,2.3919,3119.2,3117.5,0.06413666]
[1720664825572,1.14668612,3119.1,3117.5,0.06413666]
[1720664825867,1.14668612,3119.1,3117.5,3.06413666]
[1720664825868,1.11135913,3119.0,3117.5,3.06413666]
[1720664826031,1.11135913,3119.0,3117.6,0.55040367]
[1720664826032,1.11135913,3118.9,3117.6,0.55040367]
[1720664826228,1.11135913,3118.8,3117.6,0.55040367]
[1720664826452,2.2716,3118.6,3117.2,0.32960209]
[1720664826759,1.14659962,3118.5,3116.8,5.4393]
[1720664826963,1.11135913,3118.4,3116.8,2.4393]
[1720664827191,0.03524265,3118.3,3116.8,2.4393]
[1720664827347,0.58524265,3118.3,3116.8,2.4393]
[1720664827549,1.66170655,3118.2,3116.8,2.4393]
[1720664827804,0.03524265,3118.3,3116.3,2.002]
[1720664827805,2.2716,3118.0,3116.3,4.4413]
[1720664827963,1.11170655,3117.9,3116.3,4.4413]
[1720664828161,0.03517374,3117.8,3116.4,3.0]
[1720664828787,1.11171896,3117.7,3116.4,3.0]
[1720664828997,2.2716,3118.0,3116.4,3.0]
[1720664829299,1.39103255,3117.9,3116.5,0.74413]
[1720664829824,1.11171937,3117.8,3116.5,0.74413]
[1720664829988,1.11171937,3117.7,3116.5,0.74413]
[1720664830157,1.11171497,3117.6,3116.5,0.74413]
[1720664830360,1.11171497,3117.5,3116.5,0.74413]
[1720664830612,1.11171497,3117.7,3116.6,0.374413]
[1720664830750,1.11181461,3117.6,3116.6,0.374413]
[1720664830953,1.11181461,3117.5,3116.6,0.374413]
[1720664831202,1.11181461,3117.4,3116.6,0.374413]
[1720664831354,1.11181461,3117.8,3116.6,0.374413]
[1720664831554,0.58514022,3117.7,3116.6,0.374413]
[1720664831799,1.28149581,3117.6,3116.4,3.0]
[1720664832018,2.3549,3117.4,3115.9,4.3886]
[1720664832194,1.11180033,3117.3,3115.9,4.3886]
[1720664832405,0.03504719,3117.2,3115.9,4.3886]
[1720664832696,2.3549,3117.4,3116.0,0.50302979]
[1720664832899,1.11182505,3117.3,3116.0,0.50302979]
[1720664833058,0.03506147,3117.3,3116.0,0.50302979]
[1720664833409,1.11185051,3117.2,3116.0,0.50302979]
[1720664833566,0.03506147,3117.3,3116.0,3.50302979]
[1720664833770,0.03506147,3117.3,3116.1,3.78916298]
[1720664833771,1.11186185,3117.2,3116.1,3.78916298]
[1720664833973,2.3549,3117.4,3116.2,0.06416407]
[1720664834302,2.3549,3117.4,3116.2,3.0]
[1720664834303,1.14674596,3117.3,3116.2,3.0]
[1720664834462,1.11185814,3117.2,3116.1,0.78916298]
[1720664834661,0.03488782,3117.3,3116.1,0.78916298]
[1720664834858,1.11186585,3117.2,3116.2,0.4228023]
[1720664835095,1.11186585,3117.1,3116.3,0.06416412]
[1720664835300,2.3549,3117.4,3116.3,0.06416412]
[1720664835476,0.16969548,3117.6,3116.4,2.4448]
[1720664835477,1.11184812,3117.3,3116.4,2.4448]
[1720664835676,1.11184812,3117.3,3116.5,0.06416258]
[1720664835677,0.03499422,3117.3,3116.5,0.06416258]
[1720664835904,0.03499422,3117.3,3116.6,0.55089626]
[1720664836077,0.24412949,3117.9,3116.5,3.06416258]
[1720664836272,1.11178841,3117.8,3116.5,3.0]
[1720664836598,1.11178841,3117.7,3116.5,3.0]
[1720664836762,1.14679902,3117.6,3116.4,5.4448]
[1720664836961,1.11178841,3117.5,3116.4,5.4448]
[1720664837163,0.03486393,3117.4,3116.5,0.74468]
[1720664837361,1.11179756,3117.3,3116.5,3.0]
[1720664837707,1.14663293,3117.2,3116.2,0.4228023]
[1720664837923,1.11179756,3117.1,3116.2,0.4228023]
[1720664838261,1.11179756,3117.2,3116.2,0.4228023]
[1720664838462,1.11179756,3117.2,3116.3,0.06416989]
[1720664838691,1.11179756,3117.6,3116.3,0.06416989]
[1720664838921,0.03485262,3117.1,3116.4,2.2803]
[1720664839089,2.3102,3117.7,3116.5,0.43464699]
[1720664839382,1.11184204,3117.6,3116.5,3.43464699]
[1720664839583,1.1468379,3117.5,3116.5,3.43464699]
[1720664839783,1.11184204,3117.4,3116.5,3.43464699]
[1720664840040,0.03484307,3117.3,3116.5,3.43464699]
[1720664840183,1.11184204,3117.2,3116.6,0.5714947]
[1720664840701,2.3102,3117.7,3116.6,0.5714947]
[1720664840943,1.11184954,3117.6,3116.5,3.43464699]
[1720664841224,1.11184954,3117.5,3116.5,3.43464699]
[1720664841406,1.11184954,3117.4,3116.5,3.43464699]
[1720664841617,0.03486616,3117.6,3116.5,3.43464699]
[1720664841786,1.11176037,3117.5,3116.5,3.43464699]
[1720664841988,1.11176037,3117.4,3116.6,0.5714947]
[1720664842195,1.11176037,3117.6,3116.6,0.63565962]
[1720664842417,1.11176037,3117.6,3116.6,0.5714947]
[1720664843934,1.11179507,3117.5,3116.6,0.5714947]
[1720664844110,1.11179507,3117.4,3116.6,0.5714947]
[1720664844312,1.11179507,3117.3,3116.6,0.5714947]
[1720664844507,1.11179507,3117.6,3116.4,2.2803]
[1720664844930,0.034842,3117.5,3116.4,2.2803]
[1720664845099,1.11179507,3117.4,3116.4,2.2803]
[1720664845433,0.03483044,3117.3,3116.0,3.0]
[1720664845600,0.03483044,3117.3,3116.1,0.74569]
[1720664845601,1.11179507,3117.2,3116.1,0.74569]
[1720664846039,1.11179507,3117.1,3116.1,0.74569]
[1720664846232,1.11179507,3117.6,3116.1,0.74569]
[1720664846541,1.66179507,3117.5,3116.1,0.74569]
[1720664846722,1.11179507,3117.4,3116.1,0.74569]
[1720664847035,0.03474317,3117.3,3116.2,0.374569]
[1720664847235,1.14667906,3117.3,3116.2,0.374569]
[1720664847428,1.11193589,3117.2,3116.2,0.374569]
[1720664847624,1.11193589,3117.1,3116.2,0.374569]
[1720664847802,1.11193589,3117.2,3116.2,0.374569]